bitfinex/quotes_ETHUSD_20251120
["timestamp","ask_amount","ask_price","bid_price","bid_amount"]
[1763632993482,1.02489264,3011.0,3010.9,0.001]
[1763632993681,1.48369264,3011.0,3010.9,0.001]
[1763632994276,1.88919664,3011.0,3010.9,0.001]
[1763632994821,5.2103524,3011.0,3010.9,0.001]
[1763632994978,5.3233524,3011.0,3010.9,0.001]
[1763632995513,5.45636362,3011.0,3010.9,0.001]
[1763632999160,5.48445312,3011.0,3010.9,0.001]
[1763633000572,5.48445312,3011.0,3010.1,0.001]
[1763633000573,7.724523,3010.9,3010.1,0.001]
[1763633000770,7.724523,3010.9,3007.1,3.49904492]
[1763633000771,0.405504,3009.4,3008.2,0.4737]
[1763633000972,0.405504,3009.2,3008.2,0.4737]
[1763633001267,1.31249664,3009.0,3008.2,0.4737]
[1763633001475,0.405504,3008.8,3008.2,0.4737]
[1763633001635,0.0869,3008.3,3007.5,0.1863]
[1763633001836,0.113,3008.2,3007.5,0.66]
[1763633002233,0.113,3008.2,3007.6,0.4737]
[1763633003767,0.405504,3008.1,3007.6,0.4737]
[1763633003972,0.113,3008.2,3007.6,0.4737]
[1763633004339,0.405504,3008.1,3007.6,0.4737]
[1763633005093,1.40395806,3008.1,3007.5,0.1863]
[1763633005299,0.4709,3007.6,3006.9,0.4737]
[1763633005579,0.4709,3007.6,3005.7,6.20442363]
[1763633005580,0.405504,3006.9,3006.1,0.1863]
[1763633005740,0.4696,3007.0,3006.1,0.1863]
[1763633005942,0.2832,3006.9,3006.1,0.66]
[1763633006361,0.405504,3006.8,3006.1,0.1863]
[1763633006560,0.4622,3007.4,3006.2,0.4737]
[1763633006765,0.405504,3007.2,3006.2,0.4737]
[1763633007193,1.31249664,3007.0,3006.2,0.4737]
[1763633007606,1.31249664,3007.1,3006.2,0.4737]
[1763633007762,0.405504,3007.1,3006.2,0.4737]
[1763633008767,1.31249664,3007.2,3006.2,0.4737]
[1763633009166,4.63790005,3007.2,3006.2,0.4737]
[1763633009395,0.405504,3007.2,3006.2,0.4737]
[1763633009595,0.405504,3007.2,3006.2,3.80015527]
[1763633010097,0.405504,3007.2,3006.3,0.4596]
[1763633010713,1.31249664,3007.2,3006.3,0.4596]
[1763633010918,4.63784913,3007.2,3006.3,0.4596]
[1763633011084,1.31249664,3007.2,3006.3,0.4596]
[1763633011408,0.99875987,3007.1,3006.3,3.78594261]
[1763633011718,0.1676,3007.6,3006.3,3.78594261]
[1763633011719,0.4699,3008.1,3007.1,0.6795]
[1763633011884,0.1676,3007.8,3007.2,0.4831]
[1763633012083,0.405504,3007.7,3007.2,0.4831]
[1763633012572,0.405504,3007.7,3007.2,0.9427]
[1763633012914,0.113,3007.6,3007.2,0.9427]
[1763633013088,0.1676,3008.2,3007.5,0.4831]
[1763633013617,0.113,3008.1,3007.5,0.9427]
[1763633014038,0.4699,3008.8,3008.0,0.4831]
[1763633014212,3.43669533,3008.7,3008.0,0.4831]
[1763633014604,0.93508214,3008.6,3007.8,0.4596]
[1763633014936,0.113,3008.7,3007.8,0.4596]
[1763633015146,0.171,3009.3,3008.6,0.6795]
[1763633015335,0.113,3009.2,3008.6,0.6795]
[1763633015633,0.113,3009.2,3008.7,0.4596]
[1763633015950,0.1410895,3009.2,3008.7,0.4596]
[1763633016142,0.113,3009.2,3008.6,0.1964]
[1763633016433,0.113,3009.2,3008.3,3.32413357]
[1763633016434,0.1402895,3009.2,3008.3,0.656]
[1763633016636,0.1402895,3009.2,3008.0,0.1964]
[1763633016637,0.405504,3009.0,3008.0,0.1964]
[1763633017025,0.405504,3008.8,3007.6,0.4596]
[1763633017227,0.405504,3008.6,3007.6,0.4596]
[1763633017438,3.35206718,3008.5,3007.6,0.4596]
[1763633018208,3.35206718,3008.5,3007.6,3.78450799]
[1763633018408,0.405504,3008.6,3007.7,0.457]
[1763633019146,7.05313614,3008.6,3007.7,0.457]
[1763633019340,7.54693614,3008.6,3007.7,0.457]
[1763633019545,0.0280895,3008.5,3007.7,0.457]
[1763633020255,4.22312007,3008.6,3007.7,3.78178292]
[1763633020410,0.0280895,3008.5,3007.7,0.457]
[1763633020606,0.90699264,3008.8,3007.7,7.10656639]
[1763633020850,0.518504,3008.7,3007.7,3.78176671]
[1763633021024,0.518504,3008.7,3007.8,0.457]
[1763633021422,3.84220204,3008.7,3007.8,0.457]
[1763633021627,0.90699264,3008.6,3007.8,0.457]
[1763633022283,1.42549664,3008.7,3007.8,3.781685]
[1763633022437,4.74919443,3008.7,3007.8,3.781685]
[1763633022761,8.07289222,3008.7,3007.8,0.457]
[1763633023277,0.405504,3008.5,3007.2,3.32535248]
[1763633023478,0.405504,3008.3,3007.1,0.1964]
[1763633023627,1.31249664,3008.1,3007.1,0.1964]
[1763633023827,0.0280895,3008.0,3007.1,0.1964]
[1763633024257,0.175,3007.9,3007.1,0.1964]
[1763633024459,0.113,3007.8,3007.1,0.1964]
[1763633024658,0.113,3007.8,3007.1,7.30431893]
[1763633024861,0.113,3007.8,3007.7,0.492]
[1763633025368,0.113,3008.0,3007.7,0.949]
[1763633025528,0.113,3008.0,3007.7,0.457]
[1763633025862,0.113,3008.0,3007.5,3.32494652]
[1763633026034,0.113,3008.0,3007.9,0.492]
[1763633026634,0.113,3008.0,3007.5,0.001]
[1763633026861,0.113,3008.0,3007.5,0.458]
[1763633027067,0.113,3008.0,3007.5,0.001]
[1763633027362,0.2030895,3007.9,3007.5,0.001]
[1763633027942,0.175,3007.9,3007.5,0.001]
[1763633028270,3.49961107,3007.9,3007.5,0.001]
[1763633028567,0.175,3007.9,3007.5,0.001]
[1763633029068,3.49958857,3007.9,3007.5,0.001]
[1763633029231,0.485,3007.6,3007.5,0.001]
[1763633029567,0.598,3007.6,3007.5,0.001]
[1763633029752,3.98721022,3007.6,3007.5,0.001]
[1763633029957,5.59819641,3007.6,3007.5,0.001]
[1763633030163,3.46369108,3007.6,3007.5,0.001]
[1763633030330,5.90376121,3007.6,3007.5,0.001]
[1763633030535,7.00960394,3007.6,3007.5,0.001]
[1763633030742,3.68469372,3007.6,3007.5,0.001]
[1763633030947,7.07390394,3007.6,3007.5,0.001]
[1763633031545,7.47940794,3007.6,3007.5,0.001]
[1763633032268,6.30926521,3007.6,3007.5,0.001]
[1763633032457,1.31249664,3007.5,3007.2,0.001]
[1763633032680,3.15430476,3007.3,3007.2,0.001]
[1763633032970,4.22816311,3007.3,3007.2,0.001]
[1763633033354,2.46585099,3007.3,3007.2,0.001]
[1763633033968,5.7267929,3007.3,3007.2,0.001]
[1763633034177,1.52806235,3007.3,3007.2,0.001]
[1763633034460,2.43505499,3007.3,3007.2,0.001]
[1763633034963,1.52806235,3007.3,3007.2,0.001]
[1763633035173,6.64129038,3007.3,3007.2,0.001]
[1763633035332,5.7602969,3007.3,3007.2,0.001]
[1763633035528,2.32205499,3007.3,3007.2,0.001]
[1763633035733,5.7602969,3007.3,3007.2,0.001]
[1763633036242,6.3052969,3007.3,3007.2,0.001]
[1763633036467,7.21437988,3007.3,3007.2,0.001]
[1763633036669,7.18629038,3007.3,3007.2,0.001]
[1763633036867,3.37164847,3007.3,3007.2,0.001]
[1763633037075,5.7602969,3007.3,3007.2,0.001]
[1763633037288,1.52806235,3007.3,3007.2,0.001]
[1763633037492,4.85375439,3007.3,3007.2,0.001]
[1763633037691,1.52851248,3007.3,3007.2,0.001]
[1763633037874,4.54773946,3007.3,3007.2,0.001]
[1763633038067,4.85375082,3007.3,3007.2,0.001]
[1763633038483,4.85377831,3007.3,3007.2,0.001]
[1763633039197,4.94176781,3007.3,3007.2,0.001]
[1763633039497,6.33396045,3007.3,3007.2,0.001]
[1763633040163,7.50788399,3007.3,3007.2,0.001]
[1763633040362,8.06738307,3007.3,3007.2,0.001]
[1763633040601,8.06738307,3007.3,3006.9,0.001]
[1763633040602,12.791438,3007.2,3006.9,0.001]
[1763633040775,12.791438,3007.2,3006.0,0.001]
[1763633040776,1.31249664,3006.4,3006.0,0.001]
[1763633040978,0.405504,3006.0,3005.7,0.001]
[1763633041291,6.62172964,3005.6,3003.7,0.1859]
[1763633041604,2.76812987,3005.9,3003.7,0.1859]
[1763633041605,0.405504,3004.8,3003.7,0.1859]
[1763633041772,0.405504,3004.6,3003.8,0.457]
[1763633041964,0.30603885,3004.7,3003.9,0.03329005]
[1763633042174,0.113,3004.6,3003.8,0.457]
[1763633042400,0.405504,3005.1,3004.5,0.6779]
[1763633042573,0.90699264,3005.2,3004.5,0.6779]
[1763633042772,0.518504,3005.1,3004.6,0.457]
[1763633042978,0.66006943,3005.1,3004.5,0.6779]
[1763633043190,0.405504,3004.9,3004.2,0.1859]
[1763633043867,0.405504,3004.9,3004.1,0.1859]
[1763633044074,0.405504,3004.9,3004.1,0.6429]
[1763633044281,0.405504,3004.9,3004.2,0.457]
[1763633044479,0.90699264,3004.8,3004.2,0.457]
[1763633045234,0.405504,3004.9,3004.2,0.457]
[1763633045380,0.113,3005.0,3004.2,0.457]
[1763633045577,0.113,3005.0,3004.9,0.492]
[1763633045979,0.30383795,3005.9,3004.9,0.949]
[1763633046307,0.113,3005.8,3005.0,0.457]
[1763633046515,0.113,3005.8,3005.0,0.88468799]
[1763633046688,0.113,3005.8,3005.1,0.1859]
[1763633046896,0.113,3005.8,3005.1,0.6429]
[1763633047288,0.113,3005.8,3005.2,0.457]
[1763633048410,0.113,3005.8,3005.2,3.78449803]
[1763633048813,0.113,3005.8,3005.2,0.454]
[1763633049112,3.43991515,3005.8,3005.2,0.454]
[1763633049315,0.93508214,3005.7,3005.2,0.454]
[1763633049679,0.0280895,3005.7,3005.2,0.454]
[1763633050382,3.35513503,3005.7,3005.2,0.454]
[1763633050583,0.0280895,3005.7,3005.2,0.454]
[1763633050993,3.35515128,3005.7,3005.2,0.454]
[1763633051395,3.35510729,3005.7,3005.2,0.454]
[1763633051945,0.113,3005.8,3005.6,0.4558]
[1763633052248,0.171,3007.0,3005.8,6.65380264]
[1763633052450,3.49661744,3007.0,3006.3,0.4558]
[1763633052653,1.01999264,3006.9,3006.3,0.4558]
[1763633052939,1.01999264,3006.9,3006.4,0.1953]
[1763633053144,0.0280895,3006.8,3006.2,0.1953]
[1763633053319,0.0280895,3006.8,3006.0,0.1953]
[1763633054333,0.90699264,3006.6,3006.0,0.1953]
[1763633054645,0.1410895,3006.5,3006.0,0.1953]
[1763633055439,0.1410895,3006.5,3006.0,0.6493]
[1763633056032,0.1410895,3006.5,3005.6,3.78106768]
[1763633056349,3.46728843,3006.5,3005.6,3.78106768]
[1763633056554,3.46728843,3006.5,3005.7,0.454]
[1763633056853,0.1410895,3006.5,3005.7,0.454]
[1763633057245,3.46723184,3006.5,3005.7,0.454]
[1763633058629,6.79337418,3006.5,3005.7,0.454]
[1763633058861,1.31249664,3006.4,3005.1,0.6399]
[1763633059079,0.405504,3006.2,3005.1,0.6399]
[1763633059298,0.113,3006.1,3005.1,0.6399]
[1763633059648,0.0280895,3006.0,3005.1,0.6399]
[1763633060185,0.0280895,3006.0,3004.6,0.454]
[1763633060186,0.405504,3005.8,3004.6,0.454]
[1763633060384,0.90699264,3005.5,3004.6,0.454]
[1763633060581,0.113,3005.7,3004.6,7.11045195]
[1763633060765,0.90699264,3005.6,3004.6,7.11045195]
[1763633060943,4.34704033,3005.7,3004.7,0.454]
[1763633061476,7.67408802,3005.7,3004.7,0.454]
[1763633061973,7.67408802,3005.7,3005.0,0.001]
[1763633062992,0.405504,3005.5,3005.0,0.001]
[1763633063349,0.4523,3005.4,3005.0,0.001]
[1763633063545,0.113,3005.3,3005.0,0.001]
[1763633064184,0.1122,3005.3,3005.0,0.001]
[1763633064382,6.6551311,3005.2,3005.0,0.001]
[1763633064573,0.90699264,3005.1,3005.0,0.001]
[1763633065080,1.00369264,3005.1,3005.0,0.001]
[1763633065295,0.90699264,3005.2,3005.0,0.001]
[1763633067071,3.32767628,3005.1,3005.0,0.001]
[1763633067275,4.23466892,3005.1,3005.0,0.001]
[1763633067467,0.90699264,3005.1,3005.0,0.001]
[1763633067888,0.90699264,3005.1,3005.0,0.5006]
[1763633069300,4.23466892,3005.1,3005.0,0.5006]
[1763633070497,4.23466892,3005.1,3005.0,0.001]
[1763633071910,4.26275842,3005.1,3005.0,0.001]
[1763633072617,0.90699264,3005.1,3005.0,0.001]
[1763633072777,4.23466892,3005.1,3005.0,0.001]
[1763633073498,0.87535589,3005.7,3005.1,6.65535256]
[1763633073679,1.76133538,3006.2,3005.1,6.65535256]
[1763633073680,0.002,3006.2,3005.6,0.4996]
[1763633073878,0.002,3006.2,3006.1,0.6951]
[1763633074287,0.002,3006.2,3006.1,1.1896]
[1763633074891,0.0300895,3006.2,3006.1,0.6951]
[1763633075111,0.002,3006.2,3006.1,0.6951]
[1763633075830,0.0300895,3006.2,3005.8,0.4945]
[1763633076199,0.002,3006.2,3005.8,0.4945]
[1763633076935,0.002,3006.2,3005.8,3.82139084]
[1763633077108,0.002,3006.2,3006.1,0.4996]
[1763633077426,0.002,3006.2,3005.2,5.27101145]
[1763633077595,0.002,3006.2,3005.4,0.4945]
[1763633077794,0.002,3006.2,3005.4,3.82174771]
[1763633078011,0.002,3006.2,3005.5,0.4945]
[1763633078722,0.90899264,3006.2,3005.5,0.4945]
[1763633078927,1.61477903,3006.2,3005.5,0.4945]
[1763633079837,0.90699264,3006.0,3005.3,0.4567]
[1763633080000,0.113,3005.9,3005.3,0.4567]
[1763633080195,0.113,3005.9,3005.3,3.78411553]
[1763633080827,0.113,3005.9,3005.4,0.4557]
[1763633081132,0.002,3006.2,3005.8,0.4582]
[1763633081439,0.002,3006.2,3006.1,0.6431]
[1763633081644,0.115,3006.2,3006.1,0.6431]
[1763633083132,0.002,3006.2,3006.1,4.4253693]
[1763633083325,0.002,3006.2,3006.1,5.49037042]
[1763633084221,0.002,3006.6,3006.1,12.14350902]
[1763633084414,0.115,3006.6,3006.5,6.68284187]
[1763633084963,0.002,3006.6,3006.5,7.13854187]
[1763633085120,0.115,3006.6,3006.5,7.85239606]
[1763633085428,0.002,3006.6,3006.5,7.85239606]
[1763633086244,0.002,3006.6,3006.5,11.17852278]
[1763633086642,0.115,3006.6,3006.5,11.17852278]
[1763633086953,0.002,3006.6,3006.5,11.17852278]
[1763633088139,0.0012,3006.6,3006.5,11.17852278]
[1763633092823,0.0012,3006.6,3006.5,12.08551542]
[1763633093933,0.002,3006.9,3006.6,0.90699264]
[1763633094137,0.002,3006.9,3006.8,0.4582]
[1763633094754,0.002,3006.9,3006.8,5.1466875]
[1763633098630,0.0012,3006.9,3006.8,5.1466875]
[1763633099047,0.002,3007.3,3006.9,7.67030464]
[1763633099247,0.002,3007.3,3007.2,0.6431]
[1763633099557,0.002,3007.3,3007.2,1.84002345]
[1763633099728,0.002,3007.3,3007.2,2.29572345]
[1763633101044,0.002,3007.3,3007.2,5.62107593]
[1763633102262,0.002,3007.5,3007.3,0.90699264]
[1763633102430,0.002,3007.5,3007.4,0.9139]
[1763633102767,0.002,3007.9,3007.4,3.21336606]
[1763633102937,0.002,3007.9,3007.8,7.58983451]
[1763633103329,0.2749,3007.9,3007.2,0.1849]
[1763633103556,0.113,3007.8,3007.2,0.1849]
[1763633103771,0.113,3007.7,3007.2,0.1849]
[1763633103980,0.113,3007.7,3007.2,3.51023481]
[1763633104364,0.0979,3007.3,3007.0,3.32555098]
[1763633104565,0.0979,3007.3,3006.8,3.32576561]
[1763633104566,0.0979,3007.3,3006.8,3.32579486]
[1763633104749,0.0979,3007.3,3006.8,6.65158972]
[1763633105383,0.0979,3007.3,3006.7,6.65181094]
[1763633105572,0.0979,3007.3,3006.7,4.23289811]
[1763633105776,0.0979,3007.3,3006.7,7.55880358]
[1763633106089,0.0979,3007.3,3006.6,3.96660311]
[1763633106246,0.4476,3007.2,3006.6,3.32600311]
[1763633107075,0.4476,3007.2,3006.5,3.32707481]
[1763633107259,0.1703,3006.7,3006.5,0.001]
[1763633107443,0.113,3006.6,3006.5,0.001]
[1763633108177,0.113,3006.8,3006.5,0.9197]
[1763633108890,0.4932,3006.6,3006.5,0.001]
[1763633109243,0.0562,3007.4,3006.5,0.4829]
[1763633109446,3.43829096,3007.3,3006.5,3.32708001]
[1763633109642,0.30642251,3007.2,3006.5,3.32708001]
[1763633109847,0.79722251,3007.2,3006.5,3.32708001]
[1763633110777,0.113,3007.1,3006.5,3.32708001]
[1763633110988,0.30642251,3007.2,3006.5,6.65320673]
[1763633111151,0.113,3007.0,3006.5,6.65320673]
[1763633111347,0.30642251,3007.2,3006.5,0.001]
[1763633111554,0.113,3007.1,3006.5,0.4615]
[1763633112192,0.79676038,3007.1,3006.5,0.001]
[1763633112507,0.113,3007.0,3006.5,0.001]
[1763633112871,0.1702,3006.9,3006.5,0.001]
[1763633113583,0.4932,3006.6,3006.5,0.001]
[1763633113789,0.6062,3006.6,3006.5,0.001]
[1763633114098,3.49592389,3006.9,3006.5,0.001]
[1763633114099,0.1702,3006.9,3006.5,0.001]
[1763633114261,0.113,3006.6,3006.5,0.001]
[1763633114775,0.113,3006.6,3006.5,0.4829]
[1763633115188,0.113,3006.6,3006.5,0.001]
[1763633116057,0.1716,3006.6,3006.5,0.001]
[1763633116266,0.6581,3006.6,3006.5,0.001]
[1763633116606,3.98411609,3006.6,3006.5,0.001]
[1763633116804,4.29096704,3006.6,3006.5,0.001]
[1763633117609,0.36545095,3006.6,3006.5,0.001]
[1763633117900,0.1716,3006.6,3006.5,0.001]
[1763633118085,3.80446704,3006.6,3006.5,0.001]
[1763633118286,0.1716,3006.6,3006.5,0.001]
[1763633119214,3.49761609,3006.6,3006.5,0.001]
[1763633119416,3.98411609,3006.6,3006.5,0.001]
[1763633120115,0.6581,3006.6,3006.5,0.001]
[1763633120314,3.98411609,3006.6,3006.5,0.001]
[1763633122117,0.0586,3006.6,3006.5,0.001]
[1763633122616,0.1716,3006.6,3006.5,0.001]
[1763633122816,0.113,3006.6,3006.5,0.001]
[1763633123908,3.32580043,3006.8,3006.5,0.001]
[1763633124085,0.0629,3006.6,3006.5,0.001]
[1763633126299,3.38891609,3006.6,3006.5,0.001]
[1763633126493,3.87121609,3006.6,3006.5,0.001]
[1763633126898,3.89930559,3006.6,3006.5,0.001]
[1763633129111,5.51810593,3006.6,3006.5,0.001]
[1763633129429,1.27619634,3006.6,3006.5,0.001]
[1763633129632,4.40890873,3006.6,3006.5,0.001]
[1763633129836,4.87170873,3006.6,3006.5,0.001]
[1763633130012,5.20615423,3006.6,3006.5,0.001]
[1763633130423,4.89979823,3006.6,3006.5,0.001]
[1763633130727,5.20615044,3006.6,3006.5,0.001]
[1763633131135,5.47056494,3006.6,3006.5,0.001]
[1763633131333,6.28936675,3006.6,3006.5,0.001]
[1763633131822,6.17636675,3006.6,3006.5,0.001]
[1763633132004,6.28936675,3006.6,3006.5,0.001]
[1763633132333,6.17636675,3006.6,3006.5,0.001]
[1763633132511,6.28936675,3006.6,3006.5,0.001]
[1763633133536,5.30806275,3006.6,3006.5,0.001]
[1763633133724,5.42106275,3006.6,3006.5,0.001]
[1763633134249,5.88386275,3006.6,3006.5,0.001]
[1763633134817,5.77086275,3006.6,3006.5,0.001]
[1763633135016,5.42106275,3006.6,3006.5,0.001]
[1763633135547,4.51407011,3006.6,3006.5,0.001]
[1763633135728,5.41046361,3006.6,3006.5,0.001]
[1763633136115,5.40966361,3006.6,3006.5,0.001]
[1763633137328,5.38157411,3006.6,3006.5,0.001]
[1763633138226,4.80577411,3006.6,3006.5,0.001]
[1763633138623,4.91877411,3006.6,3006.5,0.001]
[1763633139456,5.40107411,3006.6,3006.5,0.001]
[1763633140260,6.33615625,3006.6,3006.5,0.001]
[1763633141220,7.22021835,3006.6,3006.5,0.001]
[1763633141443,6.30806675,3006.6,3006.5,0.001]
[1763633141652,6.33615625,3006.6,3006.5,0.001]
[1763633142752,7.64227702,3006.6,3006.5,0.001]
[1763633143062,7.61418752,3006.6,3006.5,0.001]
[1763633143630,7.50118752,3006.6,3006.5,0.001]
[1763633143831,7.61418752,3006.6,3006.5,0.001]
[1763633144849,11.23176373,3006.6,3006.5,0.001]
[1763633145339,1.31249664,3006.5,3006.1,0.001]
[1763633145651,2.54911571,3006.2,3006.1,0.001]
[1763633145832,3.70235923,3006.2,3006.1,0.001]
[1763633146028,4.19025923,3006.2,3006.1,0.001]
[1763633146255,3.01004016,3006.2,3006.1,0.001]
[1763633146767,6.33649881,3006.2,3006.1,0.001]
[1763633147367,7.37478626,3006.2,3006.1,0.001]
[1763633147669,7.48778626,3006.2,3006.1,0.001]
[1763633147868,7.18143405,3006.2,3006.1,0.001]
[1763633148035,7.48857283,3006.2,3006.1,0.001]
[1763633148237,7.18143405,3006.2,3006.1,0.001]
[1763633150394,7.31468188,3006.2,3006.1,0.001]
[1763633150596,7.90563354,3006.2,3006.1,0.001]
[1763633150776,6.13530493,3006.2,3006.1,0.001]
[1763633150973,6.13530493,3006.2,3005.4,0.001]
[1763633150974,0.405504,3005.7,3005.4,0.001]
[1763633151286,0.462704,3005.5,3005.4,0.001]
[1763633151697,1.65640581,3005.5,3005.4,0.001]
[1763633151884,2.56339845,3005.5,3005.4,0.001]
[1763633152286,2.87037019,3005.5,3005.4,0.001]
[1763633152597,2.98337019,3005.5,3005.4,0.001]
[1763633153198,6.31060359,3005.5,3005.4,0.001]
[1763633153694,6.33869309,3005.5,3005.4,0.001]
[1763633154197,6.22496924,3005.5,3005.4,0.001]
[1763633154584,6.33796924,3005.5,3005.4,0.001]
[1763633154786,6.22496924,3005.5,3005.4,0.001]
[1763633154989,6.33796924,3005.5,3005.4,0.001]
[1763633155483,7.39946569,3005.5,3005.4,0.001]
[1763633155681,7.48437619,3005.5,3005.4,0.001]
[1763633155887,6.19687974,3005.5,3005.4,0.001]
[1763633156087,6.30987974,3005.5,3005.4,0.001]
[1763633156665,6.1842749,3005.5,3005.4,0.001]
[1763633156879,6.2972749,3005.5,3005.4,0.001]
[1763633157210,5.90437574,3005.5,3005.4,0.001]
[1763633158596,6.30987974,3005.5,3005.4,0.001]
[1763633158790,6.19687974,3005.5,3005.4,0.001]
[1763633159025,5.70855557,3005.5,3005.4,0.001]
[1763633159194,5.82155557,3005.5,3005.4,0.001]
[1763633159394,5.84964507,3005.5,3005.4,0.001]
[1763633159613,6.33744507,3005.5,3005.4,0.001]
[1763633160315,6.33664507,3005.5,3005.4,0.001]
[1763633160522,5.84884507,3005.5,3005.4,0.001]
[1763633160686,6.33664507,3005.5,3005.4,0.001]
[1763633161117,5.84884507,3005.5,3005.4,0.001]
[1763633161582,5.70775557,3005.5,3005.4,0.001]
[1763633161788,5.82075557,3005.5,3005.4,0.001]
[1763633162032,5.95402293,3005.5,3005.4,0.001]
[1763633162789,5.95402293,3005.5,3005.0,0.001]
[1763633162790,2.28302723,3005.4,3005.0,0.001]
[1763633163089,1.79509664,3005.1,3005.0,0.001]
[1763633163282,6.16248795,3005.1,3005.0,0.001]
[1763633163519,6.22738795,3005.1,3005.0,0.001]
[1763633163719,6.36069884,3005.1,3005.0,0.001]
[1763633164938,7.64742771,3005.1,3005.0,0.001]
[1763633165124,7.61901108,3005.1,3005.0,0.001]
[1763633165330,6.44560934,3005.1,3005.0,0.001]
[1763633165542,7.64721802,3005.1,3005.0,0.001]
[1763633165735,7.61912852,3005.1,3005.0,0.001]
[1763633166109,6.44560934,3005.1,3005.0,0.001]
[1763633166413,6.47369884,3005.1,3005.0,0.001]
[1763633168940,7.64731652,3005.1,3005.0,0.001]
[1763633169242,6.44560934,3005.1,3005.0,0.001]
[1763633169611,7.5827945,3005.1,3005.0,0.001]
[1763633169939,7.554705,3005.1,3005.0,0.001]
[1763633170156,7.619605,3005.1,3005.0,0.001]
[1763633170326,8.20689217,3005.1,3005.0,0.001]
[1763633170636,6.44560934,3005.1,3005.0,0.001]
[1763633170854,6.47369884,3005.1,3005.0,0.001]
[1763633171058,6.44560934,3005.1,3005.0,0.001]
[1763633171252,8.20689217,3005.1,3005.0,0.001]
[1763633171617,6.38070934,3005.1,3005.0,0.001]
[1763633172231,6.44560934,3005.1,3005.0,0.001]
[1763633172430,6.47369884,3005.1,3005.0,0.001]
[1763633172651,6.40879884,3005.1,3005.0,0.001]
[1763633173047,6.47369884,3005.1,3005.0,0.001]
[1763633173256,8.23498167,3005.1,3005.0,0.001]
[1763633173567,5.89810934,3005.1,3005.0,0.001]
[1763633173724,7.07408231,3005.1,3005.0,0.4971]
[1763633174055,4.5856127,3005.1,3005.0,0.9674]
[1763633174255,5.89810934,3005.1,3005.0,0.4971]
[1763633174443,5.0192062,3005.1,3005.0,0.4971]
[1763633174752,4.9911167,3005.1,3005.0,0.4971]
[1763633175121,5.76479845,3005.1,3005.0,0.9674]
[1763633175751,5.79288795,3005.1,3005.0,0.9674]
[1763633176423,5.79401653,3005.1,3005.0,0.9674]
[1763633177223,4.45363296,3005.1,3005.0,0.9674]
[1763633177423,4.65482379,3005.1,3005.0,0.4971]
[1763633177627,5.76715436,3005.1,3005.0,0.9674]
[1763633179356,6.67731711,3005.1,3005.0,0.4971]
[1763633179668,5.84385436,3005.1,3005.0,0.001]
[1763633179842,7.04791683,3005.1,3005.0,0.001]
[1763633180041,7.98542733,3005.1,3005.0,0.001]
[1763633180250,8.57073719,3005.1,3005.0,0.001]
[1763633180573,8.57073719,3005.1,3004.7,0.001]
[1763633180574,1.31249664,3005.0,3004.7,0.001]
[1763633180768,2.80367808,3005.0,3004.7,0.001]
[1763633180973,1.38459664,3004.8,3004.7,0.001]
[1763633181155,2.78204179,3004.8,3004.7,0.001]
[1763633181344,3.25454179,3004.8,3004.7,0.001]
[1763633181540,3.22645229,3004.8,3004.7,0.001]
[1763633181950,6.5544608,3004.8,3004.7,0.001]
[1763633182366,6.5825503,3004.8,3004.7,0.001]
[1763633184170,6.5817503,3004.8,3004.7,0.001]
[1763633184371,5.7037463,3004.8,3004.7,0.001]
[1763633184573,5.72578659,3004.8,3004.7,0.001]
[1763633184750,6.22637609,3004.8,3004.7,0.001]
[1763633185173,8.5797008,3004.8,3004.7,0.001]
[1763633185379,6.19828659,3004.8,3004.7,0.001]
[1763633185682,8.5797008,3004.8,3004.7,0.001]
[1763633185836,6.19828659,3004.8,3004.7,0.001]
[1763633186041,6.22637609,3004.8,3004.7,0.001]
[1763633186763,5.75387609,3004.8,3004.7,0.001]
[1763633186981,5.72578659,3004.8,3004.7,0.001]
[1763633187778,5.85910459,3004.8,3004.7,0.001]
[1763633188656,4.95211195,3004.8,3004.7,0.001]
[1763633188868,6.71719703,3004.8,3004.7,0.001]
[1763633189073,5.85910459,3004.8,3004.7,0.001]
[1763633189254,5.88719409,3004.8,3004.7,0.001]
[1763633189460,6.36029409,3004.8,3004.7,0.001]
[1763633190291,5.41039009,3004.8,3004.7,0.001]
[1763633190478,7.75587117,3004.8,3004.7,0.001]
[1763633190795,6.36790459,3004.8,3004.7,0.001]
[1763633190993,6.47729409,3004.8,3004.7,0.001]
[1763633192684,6.47668245,3004.8,3004.7,0.001]
[1763633194388,6.39538245,3004.8,3004.7,0.001]
[1763633194590,6.47668245,3004.8,3004.7,0.001]
[1763633195609,1.31249664,3004.7,3004.6,0.001]
[1763633195901,2.78916644,3004.7,3004.6,0.001]
[1763633196711,7.88278295,3004.7,3004.6,0.001]
[1763633197004,5.76698571,3004.7,3004.6,0.001]
[1763633198506,6.23128571,3004.7,3004.6,0.001]
[1763633198707,6.68438571,3004.7,3004.6,0.001]
[1763633199015,6.77958571,3004.7,3004.6,0.001]
[1763633199720,19.25709425,3004.7,3004.3,0.001]
[1763633200014,7.92150675,3004.4,3004.3,0.001]
[1763633200177,9.29025076,3004.4,3004.3,0.001]
[1763633200378,9.74115076,3004.4,3004.3,0.001]
[1763633200774,13.06960236,3004.4,3004.3,0.001]
[1763633201403,13.55100236,3004.4,3004.3,0.001]